lending/lending_fUSD_20260306
["ID","MTS","AMOUNT","RATE_DAILY","PERIOD"]
[407794673,1772805052144,-4341.52,0.0004,14]
[407794674,1772805052154,-153.0,0.0004,120]
[407794675,1772805052163,-151.0,0.0004,120]
[407794676,1772805052172,-1000.0,0.0004,30]
[407794677,1772805052182,-3153.62420388,0.0004,30]
[407794678,1772805052192,-160.0,0.0004,30]
[407794679,1772805052202,-2000.0,0.0004,120]
[407794680,1772805052211,-150.92,0.0004,2]
[407794681,1772805052221,-150.92,0.0004,2]
[407794682,1772805052234,-150.92,0.0004,2]
[407794683,1772805052243,-150.92,0.0004,2]
[407794684,1772805052252,-150.92,0.0004,2]
[407794685,1772805052261,-150.92,0.0004,2]
[407794686,1772805052270,-150.92,0.0004,2]
[407794687,1772805052280,-150.92,0.0004,2]
[407794688,1772805052290,-150.92,0.0004,2]
[407794689,1772805052299,-150.92,0.0004,2]
[407794690,1772805052308,-150.92,0.0004,2]
[407794691,1772805052317,-150.92,0.0004,2]
[407794692,1772805052327,-150.92,0.0004,2]
[407794693,1772805052336,-150.92,0.0004,2]
[407794694,1772805052346,-150.92,0.0004,2]
[407794695,1772805052357,-150.92,0.0004,2]
[407794696,1772805052366,-150.92,0.0004,2]
[407794697,1772805052375,-150.92,0.0004,2]
[407794698,1772805052384,-150.92,0.0004,2]
[407794699,1772805052393,-150.92,0.0004,2]
[407794700,1772805052402,-150.92,0.0004,2]
[407794701,1772805052411,-150.92,0.0004,2]
[407794702,1772805052420,-150.92,0.0004,2]
[407794703,1772805052429,-724.53543,0.00040088,30]
[407794704,1772805052439,-2000.0,0.000401,2]
[407794705,1772805052452,-150.0,0.00040165,2]
[407794706,1772805052462,-157.40983265,0.00040256,2]
[407794707,1772805052472,-724.53543,0.00040288,30]
[407794708,1772805052483,-800.0,0.00040356,13]
[407794709,1772805052492,-800.0,0.00040356,13]
[407794710,1772805052501,-800.0,0.00040356,13]
[407794711,1772805052511,-800.0,0.00040356,13]
[407794712,1772805052520,-800.0,0.00040356,13]
[407794713,1772805052529,-872.0,0.00040356,13]
[407794714,1772805052539,-200.0,0.00040356,2]
[407794715,1772805052552,-200.0,0.00040356,2]
[407794716,1772805052562,-200.0,0.00040356,2]
[407794717,1772805052572,-200.0,0.00040356,2]
[407794718,1772805052581,-200.0,0.00040356,2]
[407794719,1772805052590,-200.0,0.00040356,2]
[407794720,1772805052600,-200.0,0.00040356,2]
[407794721,1772805052609,-200.0,0.00040356,2]
[407794722,1772805052618,-200.0,0.00040356,2]
[407794723,1772805052627,-200.0,0.00040356,2]
[407794724,1772805052637,-200.0,0.00040356,2]
[407794725,1772805052646,-200.0,0.00040356,2]
[407794726,1772805052655,-200.0,0.00040356,2]
[407794727,1772805052664,-200.0,0.00040356,2]
[407794728,1772805052673,-200.0,0.00040356,2]
[407794729,1772805052682,-200.0,0.00040356,2]
[407794730,1772805052693,-200.0,0.00040356,2]
[407794731,1772805052703,-200.0,0.00040356,2]
[407794732,1772805052712,-200.0,0.00040356,2]
[407794733,1772805052721,-200.0,0.00040356,2]
[407794734,1772805052730,-200.0,0.00040356,2]
[407794735,1772805052739,-200.0,0.00040356,2]
[407794736,1772805052749,-200.0,0.00040356,2]
[407794737,1772805052760,-200.0,0.00040356,2]
[407794738,1772805052770,-200.0,0.00040356,2]
[407794739,1772805052779,-200.0,0.00040356,2]
[407794740,1772805052789,-200.0,0.00040356,2]
[407794741,1772805052798,-200.0,0.00040356,2]
[407794742,1772805052807,-200.0,0.00040356,2]
[407794743,1772805052817,-200.0,0.00040356,2]
[407794744,1772805052826,-200.0,0.00040356,2]
[407794745,1772805052836,-200.0,0.00040356,2]
[407794746,1772805052845,-200.0,0.00040356,2]
[407794747,1772805052854,-200.0,0.00040356,2]
[407794748,1772805052864,-200.0,0.00040356,2]
[407794749,1772805052874,-200.0,0.00040356,2]
[407794750,1772805052883,-247.0,0.00040356,2]
[407794751,1772805052893,-800.0,0.00040356,13]
[407794752,1772805052905,-800.0,0.00040356,13]
[407794753,1772805052915,-800.0,0.00040356,13]
[407794754,1772805052924,-800.0,0.00040356,13]
[407794755,1772805052934,-800.0,0.00040356,13]
[407794756,1772805052943,-800.0,0.00040356,13]
[407794757,1772805052952,-800.0,0.00040356,13]
[407794758,1772805052961,-800.0,0.00040356,13]
[407794759,1772805052972,-800.0,0.00040356,13]
[407794760,1772805052984,-800.0,0.00040356,13]
[407794761,1772805052993,-800.0,0.00040356,13]
[407794762,1772805053002,-800.0,0.00040356,13]
[407794763,1772805053011,-800.0,0.00040356,13]
[407794764,1772805053020,-800.0,0.00040356,13]
[407794765,1772805053029,-800.0,0.00040356,13]
[407794766,1772805053038,-800.0,0.00040356,13]
[407794767,1772805053162,-800.0,0.00040356,13]
[407794768,1772805053176,-800.0,0.00040356,13]
[407794769,1772805053186,-800.0,0.00040356,13]
[407794770,1772805053196,-800.0,0.00040356,13]
[407794771,1772805053205,-800.0,0.00040356,13]
[407794772,1772805053215,-800.0,0.00040356,13]
[407794773,1772805053224,-800.0,0.00040356,13]
[407794774,1772805053238,-800.0,0.00040356,13]
[407794775,1772805053247,-800.0,0.00040356,13]
[407794776,1772805053257,-800.0,0.00040356,13]
[407794777,1772805053266,-800.0,0.00040356,13]
[407794778,1772805053275,-800.0,0.00040356,13]
[407794779,1772805053286,-800.0,0.00040356,13]
[407794780,1772805053296,-800.0,0.00040356,13]
[407794781,1772805053306,-800.0,0.00040356,13]
[407794782,1772805053315,-800.0,0.00040356,13]
[407794783,1772805053325,-800.0,0.00040356,13]
[407794784,1772805053334,-800.0,0.00040356,13]
[407794785,1772805053344,-800.0,0.00040356,13]
[407794786,1772805053354,-800.0,0.00040356,13]
[407794787,1772805053365,-800.0,0.00040356,13]
[407794788,1772805053375,-800.0,0.00040356,13]
[407794789,1772805053388,-800.0,0.00040356,13]
[407794790,1772805053399,-800.0,0.00040356,13]
[407794791,1772805053409,-800.0,0.00040356,13]
[407794792,1772805053418,-800.0,0.00040356,13]
[407794793,1772805053428,-1000.0,0.00040357,2]
[407794794,1772805053439,-2500.0,0.00040452,5]
[407794795,1772805053448,-724.53543,0.00040488,30]
[407794796,1772805053459,-1042.0,0.00040501,2]
[407794797,1772805053468,-619.0,0.00040501,2]
[407794798,1772805053479,-3502.0,0.00040501,2]
[407794799,1772805053490,-1341.0,0.00040501,2]
[407794800,1772805053499,-1279.0,0.00040501,2]
[407794801,1772805053509,-5990.0,0.00040501,2]
[407794802,1772805053518,-200.0,0.00040511,77]
[407794803,1772805053527,-163.0,0.00040682,120]
[407794804,1772805053537,-724.53543,0.00040688,30]
[407794805,1772805053546,-3567.05,0.000407,14]
[407794806,1772805053556,-84569.93481197,0.000407,6]
[407794807,1772805053565,-5293.91829144,0.0004082,57]
[407794808,1772805053574,-406.98719,0.00040823,2]
[407794809,1772805053583,-724.53543,0.00040888,30]
[407794810,1772805053593,-153.0,0.000409,120]
[407794811,1772805053602,-151.0,0.000409,120]
[407794812,1772805053611,-1031.6,0.00040935,30]
[407794813,1772805053620,-1000.0,0.00040938,14]
[407794814,1772805053630,-9924.8187431,0.00040955,2]
[407794815,1772805053639,-17423.047999,0.00040955,2]
[407794816,1772805053648,-165.40867685,0.00040999,28]
[407794817,1772805053657,-5000.0,0.00041,7]
[407794818,1772805053666,-1336.03383566,0.00041,30]
[407794819,1772805053676,-5026.57882922,0.0004105,3]
[407794820,1772805053685,-5000.0,0.0004105,8]
[407794821,1772805053694,-5000.0,0.0004105,4]
[407794822,1772805053703,-1042.14801132,0.00041068,120]
[407794823,1772805053713,-300.0,0.00041068,22]
[407794824,1772805053722,-155.2922774,0.00041082,59]
[407794825,1772805053734,-724.53543,0.00041088,30]
[407794826,1772805053744,-200.062131,0.00041095,35]
[407794827,1772805053753,-300.0,0.00041096,10]
[407794828,1772805053762,-150.0,0.00041096,10]
[407794829,1772805053772,-800.0,0.00041096,14]
[407794830,1772805053781,-800.0,0.00041096,14]
[407794831,1772805053792,-800.0,0.00041096,14]
[407794832,1772805053803,-800.0,0.00041096,14]
[407794833,1772805053813,-800.0,0.00041096,14]
[407794834,1772805053822,-800.0,0.00041096,14]
[407794835,1772805053832,-800.0,0.00041096,14]
[407794836,1772805053841,-800.0,0.00041096,14]
[407794837,1772805053851,-150.0,0.00041096,10]
[407794838,1772805053862,-500.0,0.00041096,10]
[407794839,1772805053872,-2022.85431947,0.00041096,10]
[407794840,1772805053881,-800.0,0.00041096,14]
[407794841,1772805053895,-800.0,0.00041096,14]
[407794842,1772805053904,-800.0,0.00041096,14]
[407794843,1772805053917,-800.0,0.00041096,14]
[407794844,1772805053927,-800.0,0.00041096,14]
[407794845,1772805053938,-800.0,0.00041096,14]
[407794846,1772805053947,-800.0,0.00041096,14]
[407794847,1772805053958,-800.0,0.00041096,14]
[407794848,1772805053969,-380.0,0.00041096,60]
[407794849,1772805053981,-438.0,0.00041096,120]
[407794850,1772805053990,-300.0,0.00041096,30]
[407794851,1772805053999,-300.0,0.00041096,30]
[407794852,1772805054008,-300.0,0.00041096,30]
[407794853,1772805054017,-300.0,0.00041096,30]
[407794854,1772805054026,-300.0,0.00041096,30]
[407794855,1772805054036,-300.0,0.00041096,30]
[407794856,1772805054045,-300.0,0.00041096,30]
[407794857,1772805054055,-300.0,0.00041096,30]
[407794858,1772805054064,-300.0,0.00041096,30]
[407794859,1772805054073,-300.0,0.00041096,30]
[407794860,1772805054083,-300.0,0.00041096,30]
[407794861,1772805054091,-300.0,0.00041096,30]
[407794862,1772805054101,-300.0,0.00041096,30]
[407794863,1772805054110,-300.0,0.00041096,30]
[407794864,1772805054120,-300.0,0.00041096,30]
[407794865,1772805054129,-300.0,0.00041096,30]
[407794866,1772805054139,-300.0,0.00041096,30]
[407794867,1772805054149,-300.0,0.00041096,30]
[407794868,1772805054158,-300.0,0.00041096,30]
[407794869,1772805054167,-300.0,0.00041096,30]
[407794870,1772805054177,-300.0,0.00041096,30]
[407794871,1772805054186,-300.0,0.00041096,30]
[407794872,1772805054196,-300.0,0.00041096,30]
[407794873,1772805054205,-300.0,0.00041096,30]
[407794874,1772805054215,-300.0,0.00041096,30]
[407794875,1772805054224,-1568.0,0.00041096,120]
[407794876,1772805054236,-243.28992101,0.0004111,120]
[407794877,1772805054245,-1000.0,0.00041212,30]
[407794878,1772805054255,-724.53543,0.00041288,30]
[407794879,1772805054265,-200.0,0.000413,21]
[407794880,1772805054275,-1000.0,0.00041486,30]
[407794881,1772805054285,-724.53543,0.00041488,30]
[407794882,1772805054294,-543.27032365,0.000415,120]
[407794883,1772805054305,-4341.52,0.000415,14]
[407794884,1772805054315,-1042.7,0.0004157,30]
[407794885,1772805054325,-250.0,0.00041644,10]
[407794886,1772805054335,-250.0,0.00041644,10]
[407794887,1772805054345,-1000.0,0.00041644,10]
[407794888,1772805054355,-500.0,0.00041644,10]
[407794889,1772805054365,-1000.0,0.00041644,10]
[407794890,1772805054374,-161.01699525,0.00041659,4]
[407794891,1772805054383,-724.53543,0.00041688,30]
[407794892,1772805054393,-700.0,0.00041705,7]
[407794893,1772805054403,-203.790435,0.0004174,120]
[407794894,1772805054412,-947.82132409,0.00041756,28]
[407794895,1772805054423,-1000.0,0.0004176,30]
[407794896,1772805054432,-746.0,0.00041781,120]
[407794897,1772805054443,-153.0,0.000418,120]
[407794898,1772805054452,-151.0,0.000418,120]
[407794899,1772805054470,-2500.0,0.00041822,10]
[407794900,1772805054482,-162.0,0.00041837,120]
[407794901,1772805054491,-724.53543,0.00041888,30]
[407794902,1772805054501,-6000.0,0.000419,120]
[407794903,1772805054511,-350.0,0.00041905,9]
[407794904,1772805054520,-600.0,0.00041918,10]
[407794905,1772805054530,-1000.0,0.00041918,10]
[407794906,1772805054539,-294.0,0.00042,120]
[407794907,1772805054548,-294.0,0.00042,120]
[407794908,1772805054558,-294.0,0.00042,120]
[407794909,1772805054567,-294.0,0.00042,120]
[407794910,1772805054576,-294.0,0.00042,120]
[407794911,1772805054586,-294.0,0.00042,120]
[407794912,1772805054596,-294.0,0.00042,120]
[407794913,1772805054605,-294.0,0.00042,120]
[407794914,1772805054614,-294.0,0.00042,120]
[407794915,1772805054624,-294.0,0.00042,120]
[407794916,1772805054634,-294.0,0.00042,120]
[407794917,1772805054643,-294.0,0.00042,120]
[407794918,1772805054653,-294.0,0.00042,120]
[407794919,1772805054663,-294.0,0.00042,120]
[407794920,1772805054673,-294.0,0.00042,120]
[407794921,1772805054682,-293.0,0.00042,120]
[407794922,1772805054692,-293.0,0.00042,120]
[407794923,1772805054702,-293.0,0.00042,120]
[407794924,1772805054712,-293.0,0.00042,120]
[407794925,1772805054721,-293.0,0.00042,120]
[407794926,1772805054730,-162.395,0.00042031,60]
[407794927,1772805054739,-173.75,0.00042031,60]
[407794928,1772805054749,-1000.0,0.00042034,30]
[407794929,1772805054758,-746.0,0.00042055,120]
[407794930,1772805054768,-445.77608828,0.00042087,5]
[407794931,1772805054777,-1065.32,0.0004211,120]
[407794932,1772805054787,-150.0,0.00042173,120]
[407794933,1772805054797,-193.90639644,0.00042191,120]
[407794934,1772805054807,-350.0,0.00042192,10]
[407794935,1772805054816,-342.19469794,0.00042192,10]
[407794936,1772805054825,-350.0,0.00042192,10]
[407794937,1772805054835,-1500.0,0.00042192,10]
[407794938,1772805054845,-1042.7,0.00042206,30]
[407794939,1772805054854,-175640.6586,0.0004222,7]
[407794940,1772805054864,-305.059999,0.000423,18]
[407794941,1772805054873,-1000.0,0.00042308,30]
[407794942,1772805054883,-746.0,0.00042329,120]
[407794943,1772805054893,-500.0,0.00042438,120]
[407794944,1772805054906,-500.0,0.00042438,120]
[407794945,1772805054916,-152.0,0.00042438,5]
[407794946,1772805054925,-300.0,0.00042463,2]
[407794947,1772805054935,-1048.71972246,0.00042463,2]
[407794948,1772805054944,-306.68079331,0.00042463,2]
[407794949,1772805054954,-300.0,0.00042463,2]
[407794950,1772805054963,-856.31686265,0.00042463,2]
[407794951,1772805054974,-301.04099642,0.00042463,2]
[407794952,1772805054985,-1868.53914027,0.00042463,2]
[407794953,1772805054994,-301.1779551,0.00042463,2]
[407794954,1772805055003,-301.0233134,0.00042463,2]
[407794955,1772805055013,-301.04636085,0.00042463,2]
[407794956,1772805055022,-307.943616,0.00042463,2]
[407794957,1772805055032,-300.0,0.00042463,2]
[407794958,1772805055041,-300.0,0.00042463,2]
[407794959,1772805055051,-459.47941262,0.00042463,2]
[407794960,1772805055060,-300.0,0.00042463,2]
[407794961,1772805055070,-372.20230898,0.00042463,2]
[407794962,1772805055079,-300.0,0.00042463,2]
[407794963,1772805055089,-300.36223533,0.00042463,2]
[407794964,1772805055099,-301.00940719,0.00042463,2]
[407794965,1772805055108,-301.12214223,0.00042463,2]
[407794966,1772805055123,-300.0,0.00042463,2]
[407794967,1772805055137,-742.07399848,0.00042463,2]
[407794968,1772805055146,-306.8999554,0.00042463,2]
[407794969,1772805055156,-300.0,0.00042463,2]
[407794970,1772805055166,-301.46382453,0.00042463,2]
[407794971,1772805055175,-300.0,0.00042463,2]
[407794972,1772805055185,-300.0,0.00042463,2]
[407794973,1772805055195,-301.00734927,0.00042463,2]
[407794974,1772805055204,-300.0,0.00042463,2]
[407794975,1772805055214,-605.03217628,0.00042463,2]
[407794976,1772805055223,-300.95441166,0.00042463,2]
[407794977,1772805055235,-1084.42255485,0.00042463,2]
[407794978,1772805055247,-300.0,0.00042463,2]
[407794979,1772805055262,-300.0,0.00042463,2]
[407794980,1772805055284,-300.0,0.00042463,2]
[407794981,1772805055294,-300.93673575,0.00042463,2]
[407794982,1772805055303,-1048.71972246,0.00042463,2]
[407794983,1772805055312,-306.68079331,0.00042463,2]
[407794984,1772805055634,-300.94596422,0.00042463,2]
[407794985,1772805055653,-856.31686265,0.00042463,2]
[407794986,1772805055663,-1868.53914027,0.00042463,2]
[407794987,1772805055673,-307.943616,0.00042463,2]
[407794988,1772805055682,-301.3366208,0.00042463,2]
[407794989,1772805055692,-301.01024035,0.00042463,2]
[407794990,1772805055703,-300.0,0.00042463,2]
[407794991,1772805055712,-459.47941262,0.00042463,2]
[407794992,1772805055722,-300.0,0.00042463,2]
[407794993,1772805055732,-300.0,0.00042463,2]
[407794994,1772805055742,-300.98948013,0.00042463,2]
[407794995,1772805055751,-372.20230898,0.00042463,2]
[407794996,1772805055761,-300.0,0.00042463,2]
[407794997,1772805055770,-500.0,0.00042466,60]
[407794998,1772805055779,-500.0,0.00042466,60]
[407794999,1772805055789,-500.0,0.00042466,60]
[407795000,1772805055799,-500.0,0.00042466,60]
[407795001,1772805055808,-500.0,0.00042466,60]
[407795002,1772805055818,-500.0,0.00042466,60]
[407795003,1772805055827,-500.0,0.00042466,60]
[407795004,1772805055837,-500.0,0.00042466,60]
[407795005,1772805055848,-500.0,0.00042466,60]
[407795006,1772805055858,-500.0,0.00042466,60]
[407795007,1772805055868,-500.0,0.00042466,60]
[407795008,1772805055878,-500.0,0.00042466,60]
[407795009,1772805055888,-500.0,0.00042466,60]
[407795010,1772805055900,-500.0,0.00042466,60]
[407795011,1772805055909,-500.0,0.00042466,60]
[407795012,1772805055918,-500.0,0.00042466,60]
[407795013,1772805055927,-500.0,0.00042466,60]
[407795014,1772805055938,-500.0,0.00042466,60]
[407795015,1772805055947,-500.0,0.00042466,60]
[407795016,1772805055955,-500.0,0.00042466,60]
[407795017,1772805055966,-500.0,0.00042466,60]
[407795018,1772805055975,-500.0,0.00042466,60]
[407795019,1772805055986,-500.0,0.00042466,60]
[407795020,1772805055995,-500.0,0.00042466,60]
[407795021,1772805056004,-500.0,0.00042466,60]
[407795022,1772805056013,-500.0,0.00042466,60]
[407795023,1772805056022,-500.0,0.00042466,60]
[407795024,1772805056031,-500.0,0.00042466,60]
[407795025,1772805056040,-500.0,0.00042466,60]
[407795026,1772805056049,-500.0,0.00042466,60]
[407795027,1772805056058,-500.0,0.00042466,60]
[407795028,1772805056070,-500.0,0.00042466,60]
[407795029,1772805056080,-500.0,0.00042466,60]
[407795030,1772805056089,-500.0,0.00042466,60]
[407795031,1772805056098,-500.0,0.00042466,60]
[407795032,1772805056107,-500.0,0.00042466,60]
[407795033,1772805056116,-500.0,0.00042466,60]
[407795034,1772805056125,-500.0,0.00042466,60]
[407795035,1772805056133,-500.0,0.00042466,60]
[407795036,1772805056142,-500.0,0.00042466,60]
[407795037,1772805056151,-500.0,0.00042466,60]
[407795038,1772805056161,-500.0,0.00042466,60]
[407795039,1772805056170,-500.0,0.00042466,60]
[407795040,1772805056180,-500.0,0.00042466,60]
[407795041,1772805056189,-500.0,0.00042466,60]
[407795042,1772805056199,-500.0,0.00042466,60]
[407795043,1772805056208,-500.0,0.00042466,60]
[407795044,1772805056217,-500.0,0.00042466,60]
[407795045,1772805056226,-500.0,0.00042466,60]
[407795046,1772805056236,-500.0,0.00042466,60]
[407795047,1772805056245,-500.0,0.00042466,60]
[407795048,1772805056254,-500.0,0.00042466,60]
[407795049,1772805056265,-500.0,0.00042466,60]
[407795050,1772805056276,-500.0,0.00042466,60]
[407795051,1772805056285,-500.0,0.00042466,60]
[407795052,1772805056294,-500.0,0.00042466,60]
[407795053,1772805056303,-902.0,0.00042466,60]
[407795054,1772805056312,-500.0,0.00042466,120]
[407795055,1772805056321,-264.16,0.00042546,120]
[407795056,1772805056330,-299.0,0.0004257,120]
[407795057,1772805056339,-299.0,0.0004257,120]
[407795058,1772805056348,-500.0,0.00042575,120]
[407795059,1772805056357,-500.0,0.00042575,120]
[407795060,1772805056367,-162.395,0.00042579,60]
[407795061,1772805056376,-1000.0,0.00042582,30]
[407795062,1772805056385,-151.0,0.000426,120]
[407795063,1772805056395,-746.0,0.00042603,120]
[407795064,1772805056404,-1000.0,0.00042656,14]
[407795065,1772805056414,-4341.52,0.000427,14]
[407795066,1772805056423,-153.0,0.000427,120]
[407795067,1772805056432,-500.0,0.00042712,120]
[407795068,1772805056442,-500.0,0.00042712,120]
[407795069,1772805056451,-4000.0,0.0004274,14]
[407795070,1772805056460,-900.0,0.0004274,10]
[407795071,1772805056472,-450.0,0.0004274,10]
[407795072,1772805056483,-450.0,0.0004274,10]
[407795073,1772805056492,-953.09695486,0.0004274,10]
[407795074,1772805056502,-614.44737,0.0004274,120]
[407795075,1772805056512,-417.08983456,0.0004274,10]
[407795076,1772805056521,-500.0,0.0004274,120]
[407795077,1772805056530,-1000.0,0.00042799,21]
[407795078,1772805056540,-1042.7,0.00042841,30]
[407795079,1772805056549,-500.0,0.00042849,120]
[407795080,1772805056558,-500.0,0.00042849,120]
[407795081,1772805056567,-1000.0,0.00042856,30]
[407795082,1772805056577,-2520.01,0.00042866,2]
[407795083,1772805056586,-2520.01,0.00042866,30]
[407795084,1772805056596,-746.0,0.00042877,120]
[407795085,1772805056605,-359.75920656,0.000429,120]
[407795086,1772805056614,-353.09,0.00042977,90]
[407795087,1772805056623,-500.0,0.00042986,120]
[407795088,1772805056633,-500.0,0.00042986,120]
[407795089,1772805056643,-956.0,0.00043,120]
[407795090,1772805056661,-299.0,0.00043,120]
[407795091,1772805056675,-169.0,0.00043,90]
[407795092,1772805056686,-360.0,0.00043,90]
[407795093,1772805056696,-169.0,0.00043,90]
[407795094,1772805056706,-360.0,0.00043014,90]
[407795095,1772805056717,-500.0,0.00043014,120]
[407795096,1772805056727,-200.0,0.00043068,120]
[407795097,1772805056739,-200.0,0.00043068,120]
[407795098,1772805056749,-200.0,0.00043068,120]
[407795099,1772805056759,-200.0,0.00043068,120]
[407795100,1772805056769,-200.0,0.00043068,120]
[407795101,1772805056780,-160.19,0.00043068,120]
[407795102,1772805056790,-1000.0,0.00043096,2]
[407795103,1772805056800,-152.8085332,0.00043121,14]
[407795104,1772805056810,-500.0,0.00043123,120]
[407795105,1772805056819,-500.0,0.00043123,120]
[407795106,1772805056829,-162.395,0.00043127,60]
[407795107,1772805056839,-1000.0,0.0004313,30]
[407795108,1772805056848,-1044.42852228,0.00043134,14]
[407795109,1772805056858,-746.0,0.00043151,120]
[407795110,1772805056867,-350.0,0.00043178,7]
[407795111,1772805056878,-150.1,0.00043232,8]
[407795112,1772805056888,-150.1,0.00043232,8]
[407795113,1772805056900,-150.1,0.00043232,8]
[407795114,1772805056910,-150.1,0.00043232,8]
[407795115,1772805056919,-150.1,0.00043232,8]
[407795116,1772805056929,-152.69708215,0.00043232,8]
[407795117,1772805056940,-500.0,0.0004326,120]
[407795118,1772805056950,-500.0,0.0004326,120]
[407795119,1772805056959,-628.17921208,0.00043287,120]
[407795120,1772805056970,-200.0,0.00043287,60]
[407795121,1772805056982,-235.75327194,0.00043287,60]
[407795122,1772805056992,-550.0,0.00043288,10]
[407795123,1772805057002,-360.0,0.00043288,90]
[407795124,1772805057011,-550.0,0.00043288,10]
[407795125,1772805057021,-500.0,0.00043288,120]
[407795126,1772805057031,-200.0,0.000433,18]
[407795127,1772805057040,-200.0,0.000433,24]
[407795128,1772805057050,-150.0,0.00043375,14]
[407795129,1772805057065,-150.0,0.0004338,2]
[407795130,1772805057075,-500.0,0.00043397,120]
[407795131,1772805057086,-500.0,0.00043397,120]
[407795132,1772805057096,-150.0,0.000434,66]
[407795133,1772805057107,-374.940877,0.000434,10]
[407795134,1772805057117,-1000.0,0.00043404,30]
[407795135,1772805057126,-746.0,0.00043425,120]
[407795136,1772805057137,-400.0,0.0004347,3]
[407795137,1772805057148,-1042.7,0.00043476,30]
[407795138,1772805057158,-200.0,0.0004348,30]
[407795139,1772805057169,-227.34163157,0.0004348,30]
[407795140,1772805057179,-250.10563081,0.0004349,7]
[407795141,1772805057190,-200.0,0.00043495,90]
[407795142,1772805057200,-219.23011724,0.00043495,90]
[407795143,1772805057211,-200.0,0.00043499,120]
[407795144,1772805057221,-222609.13350058,0.000435,5]
[407795145,1772805057235,-181673.87825241,0.000435,30]
[407795146,1772805057245,-1515.0,0.000435,120]
[407795147,1772805057255,-1515.0,0.000435,120]
[407795148,1772805057265,-1515.0,0.000435,120]
[407795149,1772805057275,-152.0,0.000435,120]
[407795150,1772805057285,-1515.0,0.000435,120]
[407795151,1772805057295,-163.82564271,0.000435,120]
[407795152,1772805057306,-1515.0,0.000435,120]
[407795153,1772805057316,-205.91110384,0.000435,120]
[407795154,1772805057326,-1515.0,0.000435,120]
[407795155,1772805057336,-1515.0,0.000435,120]
[407795156,1772805057346,-1515.0,0.000435,120]
[407795157,1772805057356,-1515.0,0.000435,120]
[407795158,1772805057366,-1515.0,0.000435,120]
[407795159,1772805057376,-1515.0,0.000435,120]
[407795160,1772805057386,-864.0,0.000435,120]
[407795161,1772805057401,-1515.0,0.000435,120]
[407795162,1772805057411,-1515.0,0.000435,120]
[407795163,1772805057421,-864.0,0.000435,120]
[407795164,1772805057431,-1515.0,0.000435,120]
[407795165,1772805057442,-1515.0,0.000435,120]
[407795166,1772805057451,-1515.0,0.000435,120]
[407795167,1772805057462,-1515.0,0.000435,120]
[407795168,1772805057472,-1515.0,0.000435,120]
[407795169,1772805057483,-1515.0,0.000435,120]
[407795170,1772805057493,-1515.0,0.000435,120]
[407795171,1772805057503,-1515.0,0.000435,120]
[407795172,1772805057513,-1515.0,0.000435,120]